bitfinex/quotes_ETHUSD_20260306
["timestamp","ask_amount","ask_price","bid_price","bid_amount"]
[1772771929981,0.70562025,2071.9,2071.2,1.20810817]
[1772771930498,0.70562025,2071.9,2071.2,0.0011]
[1772771930691,0.70562025,2071.9,2071.2,1.20812939]
[1772771930895,2.24262025,2071.9,2071.3,0.71018807]
[1772771931095,0.70562025,2071.8,2071.3,0.71018807]
[1772771931287,0.70562025,2071.8,2071.2,1.91831746]
[1772771931609,0.70562025,2071.8,2071.3,0.71018807]
[1772771932308,0.70562025,2071.8,2071.4,1.20691319]
[1772771933207,1.91231342,2071.8,2071.3,1.91711254]
[1772771933805,0.70562025,2071.9,2071.4,0.71018807]
[1772771934304,0.70562025,2071.8,2071.2,0.71128807]
[1772771935610,0.70562025,2071.8,2071.4,0.0011]
[1772771936282,1.91230358,2071.8,2071.4,0.0011]
[1772771936483,0.70562025,2071.8,2071.4,0.0011]
[1772771938409,1.91230193,2071.8,2071.4,0.0011]
[1772771939290,0.70562025,2071.8,2071.4,0.0011]
[1772771939615,1.91230818,2071.8,2071.4,0.0011]
[1772771940114,0.70562025,2071.8,2071.4,0.0011]
[1772771940717,0.77164763,2071.7,2071.4,0.0011]
[1772771941212,0.77164763,2071.7,2071.2,1.20811874]
[1772771941510,0.77164763,2071.7,2071.2,0.0011]
[1772771942532,0.77264763,2071.9,2071.3,0.75443306]
[1772771942834,0.77264763,2071.9,2071.5,0.75443306]
[1772771943611,1.97927176,2071.9,2071.5,0.75443306]
[1772771943816,0.77164763,2071.8,2071.2,0.0011]
[1772771944141,0.77164763,2071.8,2071.2,1.20808714]
[1772771944839,0.77164763,2071.7,2071.2,0.75553306]
[1772771945241,1.20766575,2071.9,2071.2,0.75553306]
[1772771945242,2.32064763,2071.9,2071.2,0.75553306]
[1772771946726,0.77264763,2071.9,2071.2,0.75553306]
[1772771946931,0.77264763,2071.9,2071.4,0.75443306]
[1772771947716,0.77264763,2071.9,2071.5,0.0011]
[1772771948115,0.001,2071.7,2071.5,0.0011]
[1772771948346,0.001,2071.7,2071.5,0.75553306]
[1772771948844,0.001,2071.7,2071.5,0.0011]
[1772771949035,0.001,2071.7,2071.5,0.75553306]
[1772771950737,0.001,2071.7,2071.5,0.0011]
[1772771954547,0.001,2071.7,2071.5,0.75553306]
[1772771956252,0.001,2071.9,2071.5,0.75553306]
[1772771956253,0.001,2071.9,2071.6,0.75443306]
[1772771956420,0.77264763,2071.9,2071.5,0.0011]
[1772771956626,0.77264763,2071.9,2071.5,1.20795461]
[1772771957577,0.77264763,2071.9,2071.5,1.20794035]
[1772771957961,0.77264763,2071.9,2071.5,0.0011]
[1772771958574,1.20668018,2071.8,2071.5,0.0011]
[1772771958772,0.77164763,2071.7,2071.5,0.0011]
[1772771959385,0.77164763,2071.7,2071.3,0.75553306]
[1772771959386,0.77164763,2071.6,2071.3,0.0011]
[1772771959681,0.77164763,2071.6,2071.0,0.0011]
[1772771959884,3.18392244,2071.8,2071.0,0.0011]
[1772771959885,0.77164763,2071.4,2071.0,0.0011]
[1772771960487,0.77164763,2071.4,2071.3,0.0011]
[1772771960682,0.77164763,2071.3,2071.0,0.0011]
[1772771961169,0.77164763,2071.1,2071.0,0.0011]
[1772771962077,0.77164763,2071.1,2070.7,0.0011]
[1772771962287,0.77164763,2071.1,2070.6,1.20734178]
[1772771962288,0.77164763,2070.9,2069.7,0.75443306]
[1772771962491,2.31664763,2070.8,2070.1,0.75443306]
[1772771962788,3.52496882,2070.7,2070.1,1.96205814]
[1772771962991,1.546,2070.6,2070.1,1.96205814]
[1772771963360,0.77164763,2070.7,2070.1,1.96205814]
[1772771963560,2.31764763,2070.7,2070.2,0.0011]
[1772771964158,0.77164763,2070.6,2070.2,0.0011]
[1772771964359,0.77164763,2070.6,2070.3,0.0011]
[1772771964556,1.546,2070.5,2070.0,0.75443306]
[1772771964760,1.546,2070.5,2070.1,1.96320418]
[1772771965170,0.77164763,2070.6,2070.1,0.75443306]
[1772771965377,1.547,2070.5,2070.2,0.0011]
[1772771965680,0.77164763,2070.6,2070.2,0.0011]
[1772771965882,2.31664763,2070.6,2070.3,0.0011]
[1772771966182,2.31664763,2070.6,2070.2,0.0011]
[1772771966683,0.77164763,2070.6,2070.2,1.20871279]
[1772771966884,2.31764763,2070.6,2070.3,0.0011]
[1772771967084,1.546,2070.7,2070.2,0.75553306]
[1772771967280,1.546,2070.7,2070.3,0.0011]
[1772771967806,2.31764763,2070.7,2070.3,0.0011]
[1772771968805,2.31764763,2070.7,2070.3,1.20865446]
[1772771969415,3.52497216,2070.7,2070.3,0.0011]
[1772771969711,3.52497216,2070.7,2070.4,0.0011]
[1772771969889,0.7179704,2070.6,2070.3,0.0011]
[1772771970090,0.7179704,2070.6,2070.2,1.20871216]
[1772771971392,0.50903816,2070.5,2070.2,0.0011]
[1772771972305,0.50903816,2070.5,2070.2,0.72077157]
[1772771972610,0.50903816,2070.5,2070.3,0.72187157]
[1772771972812,0.50903816,2070.5,2070.3,0.72077157]
[1772771972980,0.50903816,2070.5,2070.4,0.0011]
[1772771973611,2.2629704,2070.8,2070.4,0.72077157]
[1772771973807,0.7179704,2070.7,2070.3,1.2086442]
[1772771974015,0.7179704,2070.7,2070.4,0.0011]
[1772771974212,0.7179704,2070.7,2070.3,0.0022]
[1772771974397,0.7179704,2070.7,2070.3,1.20975413]
[1772771976218,1.92531749,2070.7,2070.3,0.0022]
[1772771976388,0.7179704,2070.7,2070.3,0.0022]
[1772771976707,1.92531216,2070.7,2070.3,0.0022]
[1772771976910,0.7179704,2070.6,2070.3,0.0022]
[1772771977296,0.7179704,2070.6,2070.3,0.0011]
[1772771977500,0.7179704,2070.6,2070.0,0.0011]
[1772771978227,0.7179704,2070.4,2070.0,0.0011]
[1772771978422,1.545,2070.3,2070.0,0.72077157]
[1772771978722,0.7179704,2070.2,2070.0,0.0011]
[1772771979517,2.2629704,2070.2,2070.0,0.0011]
[1772771980603,2.2629704,2070.2,2070.1,0.0011]
[1772771981326,1.545,2070.2,2070.1,0.0011]
[1772771982736,1.545,2070.2,2069.7,0.15869843]
[1772771982899,0.7179704,2070.1,2069.7,1.20790452]
[1772771983104,1.545,2070.5,2069.8,0.15931531]
[1772771983327,2.2549704,2070.4,2069.8,0.15931531]
[1772771983530,2.2479704,2070.4,2069.8,0.15931531]
[1772771984032,0.7179704,2070.4,2069.8,0.15931531]
[1772771984199,1.531,2070.3,2070.2,0.0011]
[1772771984624,1.532,2070.3,2070.2,0.0011]
[1772771984825,0.001,2070.3,2070.2,0.0011]
[1772771987848,0.7189704,2070.3,2070.2,0.0011]
[1772771988023,0.7189704,2070.3,2070.0,0.0011]
[1772771989344,1.534,2070.2,2070.0,0.0011]
[1772771989920,0.7189704,2070.3,2070.0,0.0011]
[1772771990121,2.2539704,2070.3,2070.0,0.0011]
[1772771990722,0.7179704,2070.2,2070.0,0.0011]
[1772771991847,1.536,2070.3,2070.0,0.0011]
[1772771991848,2.2539704,2070.3,2070.0,0.0011]
[1772771992235,0.7189704,2070.3,2070.0,0.0011]
[1772771992552,2.2549704,2070.3,2070.0,0.0011]
[1772771992761,0.7179704,2070.8,2070.1,0.16456584]
[1772771993054,0.7179704,2070.7,2070.2,1.37217863]
[1772771993259,1.515,2071.0,2070.3,0.16511698]
[1772771993578,0.7179704,2070.9,2070.2,1.20761279]
[1772771993856,1.516,2070.8,2070.0,1.20879647]
[1772771994026,0.7179704,2070.7,2070.0,1.20879647]
[1772771994727,2.2359704,2070.6,2070.0,1.20879647]
[1772771995270,1.52,2070.7,2070.1,0.16619769]
[1772771995473,2.2379704,2070.7,2070.1,0.16619769]
[1772771995786,2.2389704,2070.7,2070.1,0.16619769]
[1772771995957,0.7179704,2070.6,2070.0,1.20879647]
[1772771996153,0.7179704,2070.6,2070.0,0.0011]
[1772771996379,0.7179704,2070.6,2070.2,0.0011]
[1772771996564,0.7189704,2070.4,2070.2,0.0011]
[1772771996763,0.7189704,2070.4,2070.0,0.0011]
[1772771997574,0.7179704,2070.3,2070.0,0.0011]
[1772772000793,0.74822373,2070.2,2070.0,0.0011]
[1772772001683,0.74822373,2070.0,2069.7,0.0011]
[1772772003608,0.74822373,2070.3,2069.7,1.20900452]
[1772772003901,1.533,2070.1,2069.7,1.20900452]
[1772772004094,0.74822373,2070.0,2069.7,1.20900452]
[1772772004290,0.74822373,2070.0,2069.7,0.0011]
[1772772004498,2.28122373,2070.0,2069.7,0.0011]
[1772772004900,0.74822373,2070.0,2069.7,0.0011]
[1772772005094,0.74822373,2070.0,2069.4,4.83221216]
[1772772005095,0.74822373,2069.9,2069.4,1.20804263]
[1772772005300,0.74822373,2069.9,2069.0,5.00629919]
[1772772005301,1.534,2069.8,2069.2,0.17307419]
[1772772005607,1.534,2069.8,2069.3,1.20813801]
[1772772005608,2.28222373,2069.8,2069.3,1.20813801]
[1772772005814,1.534,2069.9,2069.3,1.3812122]
[1772772006023,1.534,2069.9,2069.4,0.17343516]
[1772772006202,2.28322373,2070.2,2069.4,0.17343516]
[1772772006389,0.74822373,2070.2,2069.4,0.17343516]
[1772772006711,1.535,2070.3,2069.4,0.17343516]
[1772772007282,2.74353393,2070.4,2069.4,0.17343516]
[1772772007483,0.74822373,2070.3,2069.4,0.17343516]
[1772772007705,0.74822373,2070.3,2069.6,0.17377888]
[1772772008011,0.74822373,2070.3,2069.6,0.17487888]
[1772772008207,0.001,2070.0,2069.6,0.17487888]
[1772772009815,0.001,2070.0,2069.8,0.17445889]
[1772772012521,0.001,2070.0,2069.9,1.20778781]
[1772772013995,0.001,2070.0,2069.9,1.38388233]
[1772772014996,0.001,2070.4,2069.9,1.38388233]
[1772772015720,0.74922373,2070.4,2069.9,1.38388233]
[1772772017520,0.001,2070.4,2070.0,0.17703378]
[1772772019622,0.74922373,2070.4,2070.1,1.20767112]
[1772772020012,0.001,2070.4,2070.1,1.20767112]
[1772772020806,0.74822373,2070.3,2069.9,0.0011]
[1772772021133,0.74922373,2070.2,2069.9,0.0011]
[1772772021506,0.001,2070.2,2069.9,0.0011]
[1772772021910,0.001,2070.2,2069.9,1.20888781]
[1772772023236,0.74822373,2070.6,2070.0,0.70470104]
[1772772025523,0.74822373,2070.5,2070.0,1.91238264]
[1772772026635,0.74822373,2070.5,2069.6,0.0011]
[1772772026950,0.74822373,2069.8,2068.8,0.9138425]
[1772772027251,0.74822373,2069.6,2068.8,0.9138425]
[1772772027551,0.74822373,2069.2,2068.8,0.9138425]
[1772772027719,0.74822373,2069.0,2067.9,0.3403935]
[1772772027919,0.74822373,2068.8,2068.0,3.8211]
[1772772029128,0.74822373,2068.8,2068.1,3.8211]
[1772772029321,0.74822373,2068.8,2068.0,0.72645463]
[1772772030230,0.74822373,2068.8,2067.8,4.83602679]
[1772772030231,0.75004292,2068.7,2068.1,3.8211]
[1772772030431,0.75004292,2069.5,2068.1,0.78577974]
[1772772030631,0.75004292,2069.3,2068.1,0.78577974]
[1772772032466,0.75004292,2069.1,2068.1,0.78577974]
[1772772032627,0.75004292,2069.1,2068.2,0.0011]
[1772772033902,1.2081964,2069.2,2068.0,0.0011]
[1772772033903,0.75004292,2068.8,2068.0,0.0011]
[1772772034107,1.98258051,2068.9,2068.0,0.0011]
[1772772034108,0.75004292,2068.6,2068.0,0.0011]
[1772772034593,0.75004292,2068.4,2068.0,0.0011]
[1772772035100,0.75004292,2069.4,2068.0,0.78687974]
[1772772035407,0.75004292,2069.1,2068.0,0.78687974]
[1772772035578,0.75004292,2069.1,2068.0,0.0011]
[1772772036196,1.524,2069.0,2068.0,0.0011]
[1772772036405,0.75004292,2068.9,2068.0,0.0011]
[1772772036606,0.75004292,2068.7,2068.0,0.0011]
[1772772036985,1.98258051,2068.7,2068.0,0.0011]
[1772772037323,1.98258051,2068.7,2066.2,0.1656209]
[1772772037324,0.75004292,2067.7,2066.2,0.1656209]
[1772772037515,0.75004292,2067.5,2066.3,1.99567181]
[1772772037814,0.75004292,2067.5,2066.2,0.1656209]
[1772772037984,2.73705773,2067.8,2066.2,0.1656209]
[1772772037985,1.492,2067.4,2066.3,0.78577974]
[1772772038178,0.75004292,2067.3,2066.3,0.78577974]
[1772772038377,0.75004292,2067.7,2066.3,0.78577974]
[1772772038582,1.20907844,2067.7,2066.5,0.78577974]
[1772772038790,0.75004292,2067.7,2066.5,0.78577974]
[1772772038990,0.75004292,2067.7,2066.3,1.99564089]
[1772772039191,0.75004292,2067.3,2066.2,0.1656209]
[1772772039395,0.75004292,2067.0,2066.2,0.1656209]
[1772772039613,0.75004292,2066.9,2066.2,0.1656209]
[1772772039910,0.74810929,2066.9,2066.2,0.1656209]
[1772772040283,0.75004292,2066.8,2065.6,1.9960603]
[1772772040481,0.75004292,2066.8,2065.5,4.84140914]
[1772772040482,0.75004292,2066.6,2065.4,4.84162714]
[1772772040688,0.75004292,2066.6,2065.3,1.99622494]
[1772772041281,4.83863163,2067.0,2065.4,0.78577974]
[1772772041282,0.75004292,2067.0,2065.4,0.78577974]
[1772772041486,0.75004292,2067.3,2065.4,0.78577974]
[1772772041698,2.21704292,2067.3,2065.6,0.78577974]
[1772772041898,0.75004292,2067.2,2065.6,0.78577974]
[1772772042722,1.20907288,2067.7,2065.6,0.78577974]
[1772772042723,0.75004292,2067.7,2066.2,0.78577974]
[1772772043791,0.75004292,2067.5,2066.2,0.78577974]
[1772772044628,0.75004292,2067.3,2066.2,0.78577974]
[1772772044928,0.75004292,2067.3,2066.3,1.20989207]
[1772772045094,1.95920992,2067.6,2066.4,0.78577974]
[1772772045294,0.75004292,2067.5,2066.4,0.78687974]
[1772772046219,0.75004292,2067.5,2066.4,0.0011]
[1772772047092,0.75004292,2067.3,2066.4,0.0011]
[1772772048692,0.75004292,2067.3,2066.1,0.0011]
[1772772048922,0.75004292,2067.1,2066.1,1.21110346]
[1772772049131,1.95934974,2067.3,2066.1,0.78687974]
[1772772049308,0.75004292,2067.3,2066.1,0.78687974]
[1772772049494,0.75004292,2067.3,2066.2,0.78577974]
[1772772050023,0.75004292,2067.3,2066.1,0.0011]
[1772772050337,0.75004292,2067.1,2066.1,0.0011]
[1772772050553,0.75004292,2066.8,2066.1,0.0011]
[1772772050829,0.75004292,2066.6,2066.1,0.0011]
[1772772050997,0.75004292,2066.4,2066.1,0.0011]
[1772772051597,1.20977498,2066.5,2064.3,4.84378784]
[1772772051598,0.75004292,2066.2,2064.3,4.84378784]
[1772772051838,1.98258051,2066.3,2064.1,1.4533373]
[1772772051839,0.75004292,2065.4,2064.5,4.0]
[1772772052128,1.98258051,2065.7,2064.3,0.78577974]
[1772772052129,0.75004292,2065.7,2064.3,0.78577974]
[1772772052727,2.67152173,2066.0,2064.2,4.84378784]
[1772772052728,1.508,2065.6,2064.2,4.84378784]
[1772772052921,0.75004292,2065.5,2064.2,5.62956758]
[1772772053223,1.96016925,2065.9,2065.2,0.003]
[1772772053535,0.75004292,2065.8,2065.2,0.003]
[1772772053909,0.75004292,2065.8,2064.5,0.78577974]
[1772772054100,0.75004292,2065.8,2064.4,1.21100561]
[1772772054308,0.75004292,2065.7,2064.4,1.99678535]
[1772772054713,0.75004292,2065.6,2064.4,1.21100561]
[1772772055114,0.75004292,2065.4,2064.0,4.84492406]
[1772772055411,0.75004292,2065.4,2064.0,0.78577974]
[1772772056018,0.75004292,2065.4,2063.9,1.21129899]
[1772772056626,0.75004292,2065.2,2063.9,1.21129899]
[1772772057212,0.75004292,2065.0,2063.7,5.63097572]
[1772772057441,0.75004292,2065.0,2063.8,0.78577974]
[1772772057940,0.75004292,2065.0,2064.2,0.0011]
[1772772058338,1.21057846,2065.2,2064.2,0.0011]
[1772772058544,1.96062138,2065.2,2064.2,0.0011]
[1772772058744,0.75004292,2065.1,2064.2,0.0011]
[1772772059039,1.98956103,2065.0,2064.0,0.0011]
[1772772059241,1.98956103,2065.0,2063.6,1.0]
[1772772059242,1.98956103,2064.2,2063.6,1.0]
[1772772059441,3.20062531,2064.3,2062.8,0.003]
[1772772059442,0.75004292,2063.5,2062.8,0.003]
[1772772059752,0.75004292,2063.5,2062.9,0.75996575]
[1772772059944,0.75004292,2063.5,2062.8,0.003]
[1772772059945,0.75004292,2063.5,2063.0,0.75996575]
[1772772060110,0.75004292,2063.5,2062.9,0.75996575]
[1772772060428,3.20062531,2064.3,2062.9,0.75996575]
[1772772060429,0.76285208,2063.9,2062.9,0.75996575]
[1772772060612,0.76285208,2063.8,2063.0,0.75996575]
[1772772060816,0.76285208,2063.8,2062.9,0.75996575]
[1772772061038,0.76285208,2064.2,2062.9,0.75996575]
[1772772061245,0.76285208,2064.0,2063.0,0.75996575]
[1772772061448,1.98956103,2063.4,2062.8,0.003]
[1772772061614,0.76285208,2063.3,2062.8,0.76296575]
[1772772061965,0.76285208,2063.3,2062.9,0.75996575]
[1772772062242,0.76285208,2063.3,2062.8,0.003]
[1772772062452,0.76285208,2063.1,2062.0,0.1656209]
[1772772062621,0.76285208,2063.1,2062.2,0.69996575]
[1772772062943,0.76285208,2063.0,2062.2,0.69996575]
[1772772063121,0.76285208,2063.0,2062.1,0.003]
[1772772063323,0.76285208,2062.8,2062.1,0.003]
[1772772063848,1.97458118,2063.2,2062.1,0.003]
[1772772064011,0.46806409,2063.4,2062.3,0.8182963]
[1772772064217,1.67967009,2063.4,2062.3,0.8182963]
[1772772064511,0.76285208,2063.3,2062.2,2.52477428]
[1772772064711,0.76285208,2063.1,2062.1,0.003]
[1772772065231,0.83780774,2062.9,2062.1,0.003]
[1772772065431,0.83780774,2062.7,2062.0,0.1656209]
[1772772065629,1.21182743,2063.0,2062.0,0.1656209]
[1772772065630,0.84831186,2062.5,2062.0,0.1656209]
[1772772065958,0.84831186,2062.5,2061.5,0.003]
[1772772066264,0.84831186,2062.2,2061.5,0.003]
[1772772066463,0.84831186,2062.6,2061.5,0.003]
[1772772066639,0.84831186,2062.4,2061.5,0.003]
[1772772066964,0.84831186,2061.8,2060.1,4.85405071]
[1772772067116,0.84831186,2062.2,2060.2,0.87091544]
[1772772067326,0.84831186,2062.6,2060.4,0.87091544]
[1772772067652,4.84755316,2062.9,2061.0,0.87091544]
[1772772067653,1.21192372,2062.9,2061.0,0.87091544]
[1772772067819,0.84831186,2062.7,2061.0,0.87091544]
[1772772068020,1.21192372,2062.9,2060.5,5.258]
[1772772068021,0.84831186,2062.4,2060.6,0.82091544]
[1772772068417,0.84831186,2062.8,2060.8,0.87091544]
[1772772068642,0.46806409,2063.4,2061.4,0.87091544]
[1772772068923,0.46806409,2063.4,2061.8,0.87091544]
[1772772069117,1.67967063,2063.4,2061.8,0.87091544]
[1772772069316,2.06002182,2063.2,2061.9,1.21247393]
[1772772070126,0.001,2062.9,2061.9,1.21247393]
[1772772070318,0.001,2062.9,2062.0,0.87091544]
[1772772071013,0.001,2062.9,2062.2,0.87091544]
[1772772071216,0.001,2062.9,2061.9,1.21247393]
[1772772071419,0.84931186,2062.9,2061.7,1.21365332]
[1772772072035,0.84931186,2062.9,2061.7,0.0011]
[1772772072942,0.84831186,2062.7,2061.7,0.0011]
[1772772073453,0.84831186,2062.7,2061.5,0.0011]
[1772772073454,0.84831186,2062.5,2061.5,0.0011]
[1772772073825,0.84831186,2062.0,2061.5,0.0011]
[1772772074147,2.38531186,2062.0,2061.5,0.0011]
[1772772074352,0.84831186,2062.0,2061.5,0.0011]
[1772772074552,0.84831186,2061.9,2061.5,0.0011]
[1772772075519,1.21253273,2061.8,2061.5,0.0011]
[1772772075722,1.21253273,2061.8,2061.2,0.0011]
[1772772075723,0.84831186,2061.7,2061.2,0.0011]
[1772772076020,0.84831186,2061.7,2060.2,4.85385891]
[1772772076021,0.84831186,2061.2,2059.4,0.87091544]
[1772772077625,1.21294454,2061.1,2059.6,0.87091544]
[1772772078043,0.84831186,2061.0,2059.5,1.21388686]
[1772772078647,1.21294454,2061.1,2059.6,0.87091544]
[1772772078838,2.0612564,2061.1,2059.6,0.87091544]
[1772772079038,0.84831186,2061.0,2059.6,0.87091544]
[1772772079326,0.84831186,2060.8,2059.3,1.21400475]
[1772772079521,0.84831186,2060.6,2059.3,1.21400475]
[1772772079745,0.84831186,2060.6,2059.4,0.87091544]
[1772772079950,1.21316195,2060.8,2059.4,0.87091544]
[1772772080119,4.85229419,2060.9,2059.4,0.87091544]
[1772772080325,1.21306225,2060.9,2059.4,0.87091544]
[1772772080545,0.84831186,2060.8,2059.4,0.87091544]
[1772772081641,1.21317998,2060.7,2059.5,2.0848023]
[1772772081853,0.84831186,2060.4,2058.8,0.87091544]
[1772772082031,0.84831186,2060.4,2059.8,0.0011]
[1772772083544,0.84831186,2060.4,2059.5,0.0011]
[1772772083545,0.84831186,2060.2,2059.5,0.0011]
[1772772083744,0.84831186,2060.0,2059.5,0.0011]
[1772772084548,1.21341552,2060.3,2059.5,0.0011]
[1772772084957,0.84831186,2060.2,2059.5,0.0011]
[1772772085465,1.21341552,2060.3,2059.5,0.0011]
[1772772085642,5.70197394,2060.5,2059.5,0.0011]
[1772772086643,0.84831186,2060.4,2059.5,0.0011]
[1772772086846,4.85366208,2060.5,2059.5,0.0011]
[1772772087064,1.21329774,2060.6,2059.5,0.0011]
[1772772087065,0.84831186,2060.6,2059.5,0.0011]
[1772772087956,1.21329774,2060.5,2059.5,0.0011]
[1772772088538,1.21329774,2060.5,2059.5,0.87201544]
[1772772089342,1.06097951,2060.4,2059.5,0.0011]
[1772772089538,1.21329774,2060.5,2059.5,0.0011]
[1772772089769,1.21329774,2060.5,2059.5,1.15023737]
[1772772089957,1.21317998,2060.7,2059.6,1.21382792]
[1772772090851,1.21317998,2060.7,2059.5,1.15023737]
[1772772091156,1.11908352,2060.6,2059.5,2.32459383]
[1772772091467,1.21317998,2060.7,2059.5,2.32459383]
[1772772091770,1.11908352,2060.6,2059.5,1.21498561]
[1772772091943,1.21329774,2060.5,2059.5,0.0011]
[1772772094038,1.11908352,2061.0,2059.5,1.11070822]
[1772772094241,1.11908352,2061.3,2059.5,1.11070822]
[1772772094444,1.11908352,2061.7,2059.5,1.11070822]
[1772772094645,2.33155745,2061.9,2059.7,1.11070822]
[1772772094872,1.11908352,2061.8,2059.9,1.10960822]
[1772772095091,1.11908352,2061.6,2059.7,0.0011]
[1772772095247,1.11908352,2061.4,2059.7,1.11070822]
[1772772095578,1.11908352,2061.2,2059.7,1.11070822]
[1772772095963,2.81081166,2061.1,2059.7,1.11070822]
[1772772096141,5.14289857,2061.0,2059.8,1.21371006]
[1772772096346,2.33208691,2061.0,2059.9,1.10960822]
[1772772096762,1.21300339,2061.0,2059.9,1.10960822]
[1772772097170,2.33191037,2061.3,2059.9,1.10960822]
[1772772097373,2.8120323,2061.2,2059.9,1.10960822]
[1772772097885,1.11908352,2061.1,2059.9,1.10960822]
[1772772098043,1.21300339,2061.0,2059.9,2.3232501]
[1772772098385,1.21282685,2061.4,2060.0,1.10960822]
[1772772098546,1.21282685,2061.4,2059.9,1.21364188]
[1772772098547,1.21282685,2061.4,2060.2,1.10960822]
[1772772098746,1.11908352,2061.3,2059.9,1.21364188]
[1772772098968,1.11908352,2061.3,2059.9,2.3232501]
[1772772099283,2.81821195,2061.2,2060.0,1.10960822]
[1772772100055,4.85107208,2061.5,2060.3,2.32302374]
[1772772100944,1.21253273,2061.8,2060.4,1.10960822]
[1772772101149,2.82272529,2061.7,2060.4,1.10960822]
[1772772101479,2.82272529,2061.7,2060.5,1.10960822]
[1772772101779,1.21253273,2061.8,2060.5,1.10960822]
[1772772102470,1.21265036,2061.6,2060.7,1.10960822]
[1772772102649,1.21241513,2062.0,2060.7,1.10960822]
[1772772102845,2.83063534,2061.9,2060.7,1.10960822]
[1772772103066,3.94971886,2061.9,2060.7,1.10960822]
[1772772103261,2.83063534,2061.8,2060.7,1.10960822]
[1772772103488,1.21241513,2062.0,2060.7,1.10960822]
[1772772103652,2.83266913,2061.9,2060.7,1.10960822]
[1772772104288,1.21253273,2061.8,2060.8,1.21312111]
[1772772104880,1.21242202,2062.0,2060.9,1.10960822]
[1772772106386,1.21242202,2062.0,2061.1,1.10960822]
[1772772106904,1.5432151,2062.1,2061.1,1.10960822]
[1772772107206,1.5432151,2062.1,2060.8,1.21312111]
[1772772107207,3.94868767,2062.0,2060.8,1.21312111]
[1772772107390,0.001,2061.7,2060.9,1.10960822]
[1772772107708,1.5432151,2062.1,2060.9,1.10960822]
[1772772107709,0.33084202,2062.1,2060.9,1.10960822]
[1772772107874,1.5432022,2062.1,2061.0,5.10960822]
[1772772108188,1.11908352,2062.0,2060.8,2.32272933]
[1772772108388,1.21247393,2061.9,2060.8,2.32272933]
[1772772108594,2.33151896,2062.0,2060.8,2.32272933]
[1772772108890,0.33084202,2062.1,2060.9,1.10960822]
[1772772109092,1.5432172,2062.1,2060.9,1.10960822]
[1772772109285,1.54320639,2062.1,2060.9,1.10960822]
[1772772109481,0.33084202,2062.1,2060.9,1.10960822]
[1772772110194,1.54322682,2062.1,2060.9,1.10960822]
[1772772110399,0.001,2062.9,2061.1,1.10960822]
[1772772110700,3.36174864,2063.4,2062.1,0.25]
[1772772110701,1.11908352,2063.4,2062.1,0.25]
[1772772111698,1.11908352,2063.3,2062.1,0.25]
[1772772112282,1.54299252,2063.7,2062.1,0.25]
[1772772112283,2.66205438,2063.7,2062.2,1.10960822]
[1772772112482,2.66205438,2063.7,2062.4,1.10960822]
[1772772112483,1.45060095,2063.7,2062.4,1.10960822]
[1772772112797,0.33151743,2063.7,2062.4,1.10960822]
[1772772113365,1.11908352,2064.1,2062.4,1.10960822]
[1772772113570,1.21115488,2064.2,2062.4,1.10960822]
[1772772113769,2.33006214,2064.5,2062.6,1.10960822]
[1772772113969,1.11908352,2064.8,2062.6,1.10960822]
[1772772114471,1.11908352,2064.5,2062.8,1.10960822]
[1772772114890,1.11908352,2064.5,2062.9,1.10960822]
[1772772115866,1.21080095,2064.8,2062.9,1.10960822]
[1772772116190,2.32983054,2064.9,2062.9,1.10960822]
[1772772116377,1.11908352,2064.6,2063.1,2.32137691]
[1772772116783,1.11908352,2064.6,2063.2,1.10960822]
[1772772117101,1.21080489,2064.8,2063.2,1.10960822]
[1772772117307,1.11908352,2064.9,2063.2,1.10960822]
[1772772118298,1.11908352,2064.9,2063.2,5.10960822]
[1772772118497,1.11908352,2064.7,2063.4,1.21159251]
[1772772118801,1.11908352,2064.7,2063.4,2.32120073]
[1772772119207,1.11908352,2064.7,2063.5,1.10960822]
[1772772119498,0.001,2064.3,2063.5,1.10960822]
[1772772119902,1.11908352,2065.1,2063.5,1.10960822]
[1772772120077,1.21069175,2065.0,2063.5,1.10960822]
[1772772120277,1.22521634,2065.5,2063.6,1.20293143]
[1772772120611,1.99117223,2066.8,2063.6,1.20293143]
[1772772120612,1.20998746,2066.2,2064.2,1.20293143]
[1772772120775,1.20998746,2066.2,2064.1,2.50872688]
[1772772120776,1.22521634,2066.2,2064.4,1.20293143]
[1772772121682,1.22521634,2066.2,2064.4,5.20293143]
[1772772122092,1.22521634,2066.2,2064.1,2.50872688]
[1772772122277,1.22521634,2066.2,2064.2,1.20293143]
[1772772122477,2.43519119,2066.2,2064.4,1.20293143]
[1772772122842,1.22521634,2066.1,2064.4,1.20293143]
[1772772123112,1.22521634,2066.1,2064.5,1.20293143]
[1772772123493,2.43499132,2066.5,2064.5,1.20293143]
[1772772123688,2.43499132,2066.5,2064.7,1.20293143]
[1772772123689,1.22521634,2066.4,2064.7,1.20293143]
[1772772124808,1.22521634,2066.4,2064.8,2.41370244]
[1772772124809,2.43510841,2066.3,2064.8,2.41370244]
[1772772124972,1.22521634,2066.2,2064.8,2.41370244]
[1772772125176,1.22521634,2066.2,2064.4,5.20293143]
[1772772125376,1.22521634,2066.2,2064.5,1.21094696]
[1772772125601,1.22521634,2066.2,2064.6,1.20293143]
[1772772126985,1.22521634,2066.2,2064.8,1.20293143]
[1772772127387,2.43517668,2066.2,2064.8,1.20293143]
[1772772127587,1.22521634,2066.1,2064.7,1.21082966]
[1772772128888,1.22521634,2066.1,2064.5,4.84331864]
[1772772128889,1.22521634,2065.9,2064.5,4.84331864]
[1772772129119,1.22521634,2065.9,2064.5,6.04625007]
[1772772129522,1.22521634,2065.9,2064.6,1.20293143]
[1772772130825,1.22521634,2065.8,2064.5,4.84331864]
[1772772130999,1.22521634,2065.6,2064.3,4.84419975]
[1772772131422,1.22521634,2065.6,2064.3,6.04713118]
[1772772131721,1.22521634,2065.6,2064.4,1.20293143]
[1772772132708,5.01722095,2065.9,2064.4,1.20293143]
[1772772132904,5.01718906,2065.9,2064.4,1.20293143]
[1772772133127,5.01718906,2065.9,2064.5,2.41497839]
[1772772133326,5.01818906,2065.9,2064.5,2.41497839]
[1772772133638,1.22521634,2065.8,2064.6,1.20293143]
[1772772133925,1.22521634,2065.8,2064.5,1.21204696]
[1772772135114,2.43544344,2065.8,2064.5,0.0011]
[1772772135694,2.43544344,2065.8,2064.5,1.20403143]
[1772772135695,1.22521634,2065.8,2064.5,1.20403143]
[1772772136524,0.001,2065.9,2064.5,1.20403143]
[1772772137123,0.001,2065.9,2064.7,1.20293143]
[1772772137319,0.001,2065.9,2064.8,1.20293143]
[1772772139505,0.001,2065.9,2064.9,2.41364381]
[1772772140745,0.001,2065.9,2065.0,1.20293143]